bitfinex-derivatives/quotes_SOLF0:USTF0_20250703
["timestamp","ask_amount","ask_price","bid_price","bid_amount"]
[1751566571290,9.73970896,151.26,151.25,235.96]
[1751566571291,17.66147968,151.26,151.25,235.96]
[1751566571488,15.1724805,151.26,151.25,235.96]
[1751566571895,15.1724805,151.26,151.25,45.24]
[1751566572192,15.1724805,151.26,151.25,235.96]
[1751566572393,9.73970896,151.26,151.25,45.24]
[1751566572594,9.73970896,151.26,151.25,235.96]
[1751566572993,9.73970896,151.26,151.25,45.24]
[1751566573188,9.73970896,151.26,151.25,235.96]
[1751566573894,6.6094,151.25,151.23,6.6101]
[1751566574291,6.6094,151.25,151.24,190.74]
[1751566574795,6.6094,151.25,151.23,6.6101]
[1751566575094,6.6094,151.25,151.24,190.74]
[1751566575484,6.6094,151.25,151.23,197.3501]
[1751566575794,6.6094,151.25,151.23,6.6101]
[1751566575995,6.6094,151.25,151.23,197.3501]
[1751566577392,6.6097,151.24,151.23,190.74]
[1751566581897,6.6097,151.24,151.22,45.24]
[1751566582394,6.6097,151.24,151.23,190.74]
[1751566583393,6.6097,151.24,151.22,45.24]
[1751566583592,6.6102,151.23,151.22,45.24]
[1751566583996,6.6102,151.23,151.22,235.98]
[1751566584490,6.6102,151.23,151.22,45.24]
[1751566587595,6.6102,151.23,151.2,6.6113]
[1751566587801,4.89408341,151.22,151.17,570.84]
[1751566587994,4.89408341,151.22,151.18,190.76]
[1751566588195,6.6113,151.21,151.18,190.76]
[1751566588893,6.6113,151.21,151.18,197.3721]
[1751566589096,6.6113,151.21,151.19,190.76]
[1751566589496,6.6115,151.2,151.19,190.76]
[1751566593000,4.93778455,151.22,151.17,570.84]
[1751566593205,4.93778455,151.22,151.18,190.76]
[1751566593802,3.13472879,151.2,151.18,190.76]
[1751566594002,3.13472879,151.19,151.16,45.24]
[1751566594206,3.13472879,151.18,151.16,45.24]
[1751566594401,6.6128,151.17,151.16,45.24]
[1751566595203,0.04716912,151.18,151.16,48.37472879]
[1751566595396,0.04716912,151.18,151.17,3.13472879]
[1751566595800,6.65956912,151.18,151.16,51.853]
[1751566596204,6.65956912,151.18,151.16,45.24]
[1751566597307,6.6128,151.17,151.16,236.02]
[1751566597705,6.65966912,151.18,151.16,242.6331]
[1751566597905,0.04716912,151.18,151.16,236.02]
[1751566598300,6.65956912,151.18,151.16,242.633]
[1751566598506,6.65956912,151.18,151.16,236.02]
[1751566599007,6.6128,151.17,151.16,236.02]
[1751566599408,6.6128,151.17,151.16,236.04]
[1751566611619,6.6128,151.17,151.16,45.24]
[1751566611821,6.6128,151.17,151.16,236.06]
[1751566613817,6.6128,151.17,151.16,45.24]
[1751566614119,4.89764906,151.17,151.12,45.26]
[1751566614521,4.89764906,151.17,151.13,190.82]
[1751566614917,6.6141,151.14,151.13,190.82]
[1751566615423,4.89764906,151.17,151.13,190.82]
[1751566616626,6.6145,151.13,151.12,45.26]
[1751566616826,6.6145,151.13,151.12,236.08]
[1751566618526,6.6145,151.13,151.12,45.26]
[1751566618729,6.6145,151.13,151.12,236.08]
[1751566621629,6.6145,151.13,151.12,45.26]
[1751566621821,6.6145,151.13,151.12,236.1]
[1751566622022,6.6145,151.13,151.12,45.26]
[1751566622226,6.6145,151.13,151.12,236.1]
[1751566622419,9.75142979,151.13,151.12,236.1]
[1751566623226,6.6145,151.13,151.12,236.1]
[1751566624129,3.13692979,151.13,151.04,8.42688295]
[1751566624427,3.13692979,151.11,151.07,239.23692979]
[1751566624729,3.13692979,151.14,151.1,3.13692979]
[1751566624931,3.13692979,151.14,151.11,190.84]
[1751566625332,3.18361036,151.14,151.11,190.84]
[1751566626024,6.6153,151.12,151.11,190.84]
[1751566627330,9.75222979,151.12,151.11,190.84]
[1751566629733,3.13692979,151.12,151.07,51.8769]
[1751566629935,3.13692979,151.12,151.08,193.99692979]
[1751566630635,6.6162,151.1,151.08,190.86]
[1751566630829,3.13692979,151.11,151.07,55.01382979]
[1751566631032,3.13692979,151.11,151.09,190.86]
[1751566631229,6.6158,151.1,151.09,190.86]
[1751566632232,6.6165,151.09,151.07,51.8772]
[1751566632535,6.6165,151.09,151.08,190.86]
[1751566633731,6.6167,151.08,151.07,48.39692979]
[1751566633932,6.6167,151.08,151.07,239.25692979]
[1751566634937,6.6167,151.08,151.07,48.39692979]
[1751566635132,6.6167,151.08,151.07,239.27692979]
[1751566636438,6.6167,151.08,151.07,190.88]
[1751566637333,6.6167,151.08,151.06,4.13692979]
[1751566637539,6.6172,151.07,151.06,1.0]
[1751566637734,6.6172,151.07,151.06,191.88]
[1751566637932,6.6169,151.08,151.06,191.88]
[1751566638540,6.6169,151.08,151.06,195.01692979]
[1751566638939,6.6169,151.08,151.06,201.63442979]
[1751566639136,6.6169,151.08,151.07,3.13692979]
[1751566639639,6.6165,151.09,151.07,3.13692979]
[1751566640138,6.6165,151.09,151.08,190.88]
[1751566645638,0.05020603,151.11,151.08,194.01692979]
[1751566645834,0.05020603,151.11,151.08,190.88]
[1751566646039,0.05020603,151.11,151.1,3.13692979]
[1751566646241,0.05020603,151.11,151.1,55.03232979]
[1751566646438,10.28110433,151.17,151.1,48.41692979]
[1751566646646,6.6131,151.16,151.13,3.13692979]
[1751566646844,3.13692979,151.16,151.14,190.88]
[1751566647344,6.6136,151.15,151.14,190.88]
[1751566648651,6.6137,151.14,151.13,0.05057133]
[1751566651645,6.6159,151.09,151.06,5.90031836]
[1751566651853,6.6159,151.09,151.08,190.86]
[1751566652450,6.6159,151.09,151.07,45.26]
[1751566652752,6.6163,151.08,151.07,236.12]
[1751566653741,6.6163,151.08,151.07,45.26]
[1751566653951,6.6163,151.08,151.07,236.12]
[1751566654252,6.6163,151.08,151.07,45.26]
[1751566654452,6.6163,151.08,151.07,236.12]
[1751566659247,6.6163,151.08,151.07,236.14]
[1751566659855,6.6163,151.08,151.07,45.26]
[1751566660051,6.6163,151.08,151.07,236.14]
[1751566662648,6.6163,151.08,151.07,45.26]
[1751566662856,6.6163,151.08,151.07,236.14]
[1751566664456,6.6163,151.08,151.07,45.26]
[1751566664650,6.6163,151.08,151.07,236.14]
[1751566665251,6.6163,151.08,151.07,45.26]
[1751566669858,6.6167,151.07,151.06,191.88]
[1751566672655,6.6167,151.07,151.06,1.0]
[1751566676164,6.6191,151.02,150.98,8.21978674]
[1751566676371,2.28082429,151.07,151.0,4.90031836]
[1751566676565,9.56351836,151.08,151.01,190.9]
[1751566676768,0.04239055,151.05,151.04,6.6178]
[1751566676976,0.04239055,151.05,151.04,197.5178]
[1751566681578,0.04239055,151.05,151.04,190.9]
[1751566682182,0.04239055,151.05,151.04,197.5181]
[1751566683281,0.04239055,151.05,151.04,190.9]
[1751566685683,0.04239055,151.05,151.04,190.88]
[1751566685879,6.65999055,151.05,151.04,190.88]
[1751566687988,6.6181,151.04,151.03,45.26]
[1751566688287,9.7588823,151.04,151.03,45.26]
[1751566688492,3.1407823,151.04,151.0,190.88]
[1751566688677,3.1407823,151.01,150.99,45.26]
[1751566688883,3.14337928,151.0,150.95,45.26]
[1751566689082,6.6216,150.96,150.95,45.26]
[1751566689287,9.76497928,150.96,150.95,45.26]
[1751566689477,6.6216,150.96,150.95,45.26]
[1751566690186,6.6216,150.96,150.93,578.2825]
[1751566690187,6.6216,150.96,150.93,6.6225]
[1751566690378,6.6216,150.96,150.94,190.88]
[1751566691180,4.95691854,150.99,150.92,45.26]
[1751566691383,0.04407521,150.99,150.93,190.92]
[1751566691588,4.91284333,151.0,150.93,195.83284333]
[1751566691789,6.66895147,150.98,150.95,6.6218]
[1751566692290,0.04785147,150.98,150.94,6.6223]
[1751566693187,6.6216,150.96,150.94,6.6223]
[1751566693387,0.04785147,150.98,150.93,197.5427]
[1751566693580,0.04785147,150.98,150.93,190.92]
[1751566693979,0.04785147,150.98,150.93,195.83284333]
[1751566694883,0.04785147,150.98,150.92,236.2]
[1751566695488,4.9606948,150.98,150.92,236.2]
[1751566696192,4.9606948,150.98,150.93,6.6226]
[1751566696387,4.9606948,150.98,150.93,197.5626]
[1751566696584,0.04785147,150.98,150.94,0.04606012]
[1751566697379,6.6214,150.97,150.94,6.66836012]
[1751566697691,6.6214,150.97,150.94,0.04606012]
[1751566698189,0.04785147,150.98,150.94,0.04606012]
[1751566699082,6.6214,150.97,150.94,6.66826012]
[1751566699587,6.6214,150.97,150.94,197.64826012]
[1751566701390,6.6216,150.96,150.94,191.02606012]
[1751566702293,6.622,150.95,150.94,191.02606012]
[1751566702694,6.622,150.95,150.94,0.04606012]
[1751566704696,6.6237,150.92,150.89,6.6244]
[1751566704891,7.17394333,150.96,150.89,6.6244]
[1751566705092,4.91284333,150.94,150.88,45.28]
[1751566705293,2.2611,150.96,150.89,4.91284333]
[1751566705997,0.04806841,150.94,150.89,4.91284333]
[1751566706193,6.6231,150.93,150.91,6.6235]
[1751566706497,0.04806841,150.94,150.92,191.22]
[1751566706799,0.04806841,150.94,150.92,197.8432]
[1751566707692,6.67066841,150.94,150.92,197.8432]
[1751566708698,6.67066841,150.94,150.92,197.8832]
[1751566710702,6.67066841,150.94,150.92,191.26]
[1751566711800,6.67066841,150.94,150.92,197.8833]
[1751566712003,0.04806841,150.94,150.92,191.26]
[1751566713410,0.04806841,150.94,150.92,197.8831]
[1751566713601,6.67056841,150.94,150.92,197.8831]
[1751566714313,0.04806841,150.94,150.92,197.8831]
[1751566716410,0.04806841,150.94,150.93,6.6229]
[1751566719412,0.04806841,150.94,150.92,202.79594333]
[1751566719613,6.67076841,150.94,150.92,197.8831]
[1751566719813,6.67076841,150.94,150.92,191.26]
[1751566721308,6.67076841,150.94,150.92,197.8833]
[1751566722117,0.04806841,150.94,150.92,197.8833]
[1751566722320,0.04806841,150.94,150.82,25.58448011]
[1751566722513,4.96091174,150.94,150.87,50.23284333]
[1751566722710,0.04806841,150.94,150.88,4.91284333]
[1751566722905,0.04806841,150.94,150.9,6.6239]
[1751566723111,6.6234,150.92,150.9,6.6239]
[1751566724419,6.6234,150.92,150.91,191.28]
[1751566724617,6.6234,150.92,150.89,6.6244]
[1751566724807,6.6234,150.92,150.9,191.28]
[1751566726219,6.624,150.91,150.88,51.9447]
[1751566726421,0.04806841,150.94,150.89,196.19284333]
[1751566726619,0.04806841,150.94,150.92,4.91284333]
[1751566726819,0.04806841,150.94,150.93,191.46]
[1751566727020,4.62830433,151.01,150.93,236.78]
[1751566727214,2.3776,151.01,150.96,4.91284333]
[1751566727416,6.6203,150.99,150.97,191.64]
[1751566731230,6.6207,150.98,150.97,191.64]
[1751566737535,6.6215,150.97,150.95,4.91284333]
[1751566737734,4.95782588,151.0,150.93,45.32]
[1751566738037,2.26843519,150.99,150.94,191.38]
[1751566738235,6.622,150.95,150.94,191.38]
[1751566739838,6.6224,150.94,150.93,45.32]
[1751566741830,6.6222,150.95,150.93,45.32]
[1751566742038,0.04891593,150.96,150.93,45.32]
[1751566742640,0.04891593,150.96,150.93,236.76]
[1751566743142,6.622,150.95,150.93,243.3827]
[1751566743442,0.04891593,150.96,150.93,236.76]
[1751566744640,6.67061593,150.96,150.94,6.6224]
[1751566745934,6.67061593,150.96,150.93,243.3827]
[1751566746134,6.622,150.95,150.93,243.3827]
[1751566746540,6.67071593,150.96,150.93,243.3827]
[1751566747839,6.67071593,150.96,150.94,6.6224]
[1751566748041,15.63328398,151.02,150.94,4.91284333]
[1751566748349,2.26326343,151.0,150.94,4.91284333]
[1751566748542,9.45694333,151.02,150.94,4.91284333]
[1751566748743,2.26302982,151.0,150.94,4.91284333]
[1751566748938,6.6203,150.99,150.94,4.91284333]
[1751566749336,9.45694333,151.02,150.94,4.91284333]
[1751566749542,2.26274093,151.0,150.94,4.91284333]
[1751566749842,9.45694333,151.02,150.95,236.86]
[1751566750043,2.26273574,151.0,150.95,236.86]
[1751566750248,9.45694333,151.02,150.95,236.86]
[1751566750547,6.6208,150.98,150.96,6.6212]
[1751566751548,2.26509447,151.0,150.96,4.91284333]
[1751566751847,2.26540509,151.03,150.98,4.91284333]
[1751566752048,6.6193,151.02,150.99,198.0002]
[1751566752442,6.6193,151.02,150.99,198.04448284]
[1751566752942,6.6195,151.01,150.99,198.04448284]
[1751566753249,6.6195,151.01,150.99,191.42428284]
[1751566754547,6.6195,151.01,150.99,198.04448284]
[1751566754748,6.6195,151.01,150.99,191.42428284]
[1751566754946,6.6187,151.03,150.99,191.42428284]
[1751566755147,2.3692,151.05,151.0,6.6196]
[1751566755349,2.26028561,151.04,151.0,6.6196]
[1751566755547,6.6189,151.03,151.0,4.91284333]
[1751566755747,6.6189,151.03,151.0,50.33284333]
[1751566756651,6.6189,151.03,151.01,6.6193]
[1751566756850,6.6189,151.03,151.0,50.33284333]
[1751566757447,6.6183,151.04,151.0,50.33284333]
[1751566757643,4.63550033,151.05,151.0,45.42]
[1751566757849,4.63550033,151.05,151.0,56.95244333]
[1751566758650,6.6189,151.03,151.0,56.95244333]
[1751566759151,4.63550033,151.05,151.0,56.95244333]
[1751566759352,6.6192,151.02,151.0,56.95244333]
[1751566760644,6.6192,151.02,151.0,50.33284333]
[1751566761049,2.3692,151.05,150.99,0.04428284]
[1751566761050,6.6194,151.01,150.99,0.04428284]
[1751566761245,6.6194,151.01,150.99,191.44428284]
[1751566761851,6.6194,151.01,150.99,0.04428284]
[1751566762258,6.6191,151.02,150.99,0.04428284]
[1751566763553,6.6191,151.02,151.0,6.6198]
[1751566764950,6.6187,151.03,151.0,4.91284333]
[1751566765155,6.6187,151.03,151.01,6.6193]
[1751566767460,6.619,151.02,151.0,6.6197]
[1751566768459,6.6187,151.03,151.0,6.6197]
[1751566768761,6.6187,151.03,151.01,6.6193]
[1751566772664,6.6187,151.03,151.0,6.6195]
[1751566774662,4.59208897,151.05,151.0,6.6195]
[1751566775164,6.6188,151.03,151.0,6.6195]
[1751566775971,6.6188,151.03,150.99,4.95712617]
[1751566776565,6.6188,151.03,151.0,6.6194]
[1751566776770,6.6183,151.04,150.99,4.95712617]
[1751566777167,6.6183,151.04,151.01,6.6191]
[1751566777374,2.3692,151.05,151.01,4.91284333]
[1751566777571,2.22426817,151.08,151.04,6.6177]
[1751566777767,6.97410817,151.09,151.04,4.91284333]
[1751566777969,6.617,151.07,151.04,4.91284333]
[1751566778475,6.617,151.07,151.05,6.66292115]
[1751566778871,6.6165,151.08,151.05,6.66292115]
[1751566779284,6.6165,151.08,151.06,6.6171]
[1751566781681,6.6165,151.08,151.05,6.66272115]
[1751566783186,6.6165,151.08,151.06,6.6172]
[1751566783578,11.36594,151.09,151.06,6.6172]
[1751566784076,9.02544,151.09,151.07,6.6168]
[1751566784475,9.02544,151.09,151.06,6.617]
[1751566784676,6.6165,151.08,151.06,6.617]
[1751566789891,9.02544,151.09,151.06,4.91284333]
[1751566791193,9.02544,151.09,151.07,6.6167]
[1751566791490,9.02544,151.09,151.06,4.91284333]
[1751566791793,9.02544,151.09,151.06,11.52964333]
[1751566792686,9.02544,151.09,151.06,6.6168]
[1751566792985,9.02544,151.09,151.06,11.52964333]
[1751566793692,9.02544,151.09,151.07,6.6166]
[1751566794794,9.02544,151.09,151.06,11.52984333]
[1751566796496,9.02544,151.09,151.07,6.6166]
[1751566796695,2.40934,151.09,151.07,6.6166]
[1751566796896,2.40934,151.09,151.08,4.91284333]
[1751566797090,2.40934,151.09,151.08,11.52914333]
[1751566800298,2.3712,151.13,151.08,50.21284333]
[1751566800599,2.3361,151.16,151.1,4.91284333]
[1751566800796,6.6139,151.14,151.11,6.6147]
[1751566801098,2.3361,151.16,151.1,4.91284333]
[1751566801300,6.6139,151.14,151.11,6.615]
[1751566802201,6.6134,151.15,151.12,4.91284333]
[1751566802399,2.3361,151.16,151.12,4.91284333]
[1751566802600,11.26618742,151.19,151.13,6.6139]
[1751566802900,6.6131,151.16,151.13,4.91284333]
[1751566803095,6.6131,151.16,151.13,11.52664333]
[1751566803500,6.6125,151.17,151.13,4.91284333]
[1751566803695,6.6125,151.17,151.14,6.6133]
[1751566804797,4.91284333,151.16,151.13,45.3]
[1751566805000,4.91284333,151.16,151.12,0.04917159]
[1751566805302,6.6141,151.13,151.12,0.04917159]
[1751566805500,4.91284333,151.14,151.09,45.3]
[1751566807104,6.6153,151.11,151.09,45.3]
[1751566807300,4.91284333,151.14,151.09,51.9157]
[1751566807702,0.04486508,151.13,151.09,51.9157]
[1751566807905,0.04486508,151.13,151.09,45.3]
[1751566808105,6.615,151.11,151.09,45.3]
[1751566808402,0.04486508,151.13,151.09,45.3]
[1751566808799,6.6154,151.1,151.09,45.3]
[1751566810304,6.6152,151.11,151.09,45.3]
[1751566811605,6.6152,151.11,151.09,51.9158]
[1751566812806,6.6152,151.11,151.09,45.3]
[1751566814407,6.6152,151.11,151.09,51.9158]
[1751566814706,6.6152,151.11,151.09,45.3]
[1751566816410,6.6154,151.1,151.09,45.3]
[1751566825314,6.6161,151.09,151.07,11.52944333]
[1751566827617,6.6161,151.09,151.07,6.6166]
[1751566827816,6.6161,151.09,151.08,3.13800761]
[1751566829611,6.6161,151.09,151.07,6.6166]
[1751566829813,6.6161,151.09,151.08,3.13800761]
[1751566830318,3.18095354,151.1,151.06,45.28]
[1751566830518,3.13800761,151.09,151.06,48.41800761]
[1751566830810,0.04294593,151.1,151.06,48.41800761]
[1751566830811,3.18095354,151.1,151.07,3.13800761]
[1751566831209,6.6163,151.08,151.07,3.13800761]
[1751566831809,6.6163,151.08,151.06,6.617]
[1751566832812,6.6163,151.08,151.05,50.18457934]
[1751566833018,6.6168,151.07,151.05,56.80197934]
[1751566839618,6.6168,151.07,151.05,51.8974]
[1751566840924,6.6172,151.06,151.05,45.28]
[1751566846832,6.617,151.07,151.05,45.28]
[1751566847730,6.6172,151.06,151.05,45.28]
[1751566851831,6.6172,151.06,151.05,48.41973822]
[1751566852632,6.6172,151.06,151.05,45.28]
[1751566852831,6.6172,151.06,151.05,48.41973822]
[1751566853036,6.6172,151.06,151.05,3.13973822]
[1751566853837,6.617,151.07,151.05,3.13973822]
[1751566854441,7.6170681,151.09,151.05,3.13973822]
[1751566855639,6.6172,151.06,151.05,3.13973822]
[1751566862648,7.61640039,151.09,151.03,197.5183]
[1751566862842,2.39762568,151.08,151.05,3.13973822]
[1751566863039,2.39762568,151.07,151.05,3.13973822]
[1751566863247,6.6175,151.06,151.05,3.13973822]
[1751566870648,2.39847211,151.06,151.02,45.28]
[1751566870848,2.39835752,151.05,151.02,48.41973822]
[1751566871050,3.13973822,151.06,151.02,48.41973822]
[1751566871354,9.01636383,151.05,151.03,3.13973822]
[1751566871547,6.618,151.05,151.03,3.13973822]
[1751566871748,6.6174,151.06,151.04,3.13973822]
[1751566872050,6.6174,151.06,151.05,3.13973822]
[1751566872249,9.01596468,151.06,151.05,3.13973822]
[1751566873855,2.39856468,151.06,151.05,3.13973822]
[1751566874154,0.04884964,151.08,151.05,3.13973822]
[1751566874354,2.39962097,151.07,151.06,3.13973822]
[1751566874754,9.01672097,151.07,151.06,3.13973822]
[1751566877757,2.39962097,151.07,151.05,3.13973822]
[1751566878056,0.04884964,151.08,151.05,3.13973822]
[1751566878357,9.01631725,151.07,151.05,3.13973822]
[1751566878558,6.6171,151.07,151.05,3.13973822]
[1751566880055,6.6171,151.07,151.06,3.13973822]
[1751566880355,2.42555148,151.07,151.06,3.13973822]
[1751566882657,9.04235148,151.07,151.06,3.13973822]
[1751566888765,6.6172,151.06,151.05,3.13973822]
[1751566889765,9.04642364,151.06,151.05,3.13973822]
[1751566890572,2.42922364,151.06,151.02,45.28]
[1751566890759,2.42922364,151.05,151.02,48.41973822]
[1751566890964,2.42922364,151.04,151.03,3.13973822]
[1751566891162,9.04752364,151.04,151.03,3.13973822]
[1751566892667,5.56896186,151.04,150.98,8.21978674]
[1751566892870,5.56814801,151.03,150.99,3.13973822]
[1751566893070,2.42840979,151.02,150.99,3.13973822]
[1751566893274,6.6201,151.0,150.99,3.13973822]
[1751566893573,2.42840979,151.0,150.98,48.39973822]
[1751566893771,3.13973822,151.02,150.98,48.39973822]
[1751566893971,2.61014137,151.01,150.98,48.39973822]
[1751566894168,2.61014137,151.0,150.98,48.39973822]
[1751566894465,3.18592077,151.02,150.98,48.39973822]
[1751566894671,2.60189304,151.01,150.98,48.39973822]
[1751566894873,9.22189304,151.0,150.98,55.02033822]
[1751566895168,6.62,151.0,150.98,55.02033822]
[1751566895373,6.62,151.0,150.99,3.13973822]
[1751566899670,6.6203,150.99,150.98,45.26]
[1751566899875,6.6203,150.99,150.98,48.39973822]
[1751566901072,6.62,151.0,150.98,48.39973822]
[1751566901274,6.62,151.0,150.99,3.13973822]
[1751566902676,6.6203,150.99,150.98,48.39973822]
[1751566904872,6.6203,150.99,150.98,45.26]
[1751566905079,6.6203,150.99,150.98,48.39973822]
[1751566905780,6.6203,150.99,150.98,3.13973822]
[1751566906683,6.6208,150.98,150.97,3.13973822]
[1751566908485,3.13973822,150.98,150.95,3.13973822]
[1751566908877,3.13973822,150.98,150.94,48.37973822]
[1751566909080,3.19031078,150.98,150.94,48.37973822]
[1751566909486,6.622,150.95,150.94,48.37973822]
[1751566916493,6.6219,150.96,150.94,48.37973822]
[1751566917286,6.6221,150.95,150.94,48.37973822]
[1751566917697,3.13973822,150.97,150.93,3.13973822]
[1751566918090,6.6226,150.94,150.93,3.13973822]
[1751566918595,6.6226,150.94,150.92,3.13973822]
[1751566918792,6.623,150.93,150.92,3.13973822]
[1751566919392,6.66674507,150.94,150.92,3.13973822]
[1751566920298,6.66674507,150.94,150.93,3.13973822]
[1751566921697,0.04404507,150.94,150.93,9.76273822]
[1751566922097,6.6211,150.98,150.95,6.6217]
[1751566922295,6.6211,150.98,150.97,3.13973822]
[1751566923295,6.6212,150.97,150.96,3.19009646]
[1751566924093,6.621,150.98,150.96,9.81169646]
[1751566924299,6.621,150.98,150.96,0.05035824]
[1751566924596,6.621,150.98,150.96,3.19009646]
[1751566926804,3.13973822,151.0,150.96,3.19009646]
[1751566926805,6.6212,150.97,150.96,3.19009646]
[1751566927003,3.13973822,151.0,150.96,9.81169646]
[1751566927202,6.6204,150.99,150.96,9.81169646]
[1751566927398,50.71383822,151.01,150.97,3.13973822]
[1751566927604,3.13973822,151.0,150.96,0.05035824]
[1751566927804,6.6211,150.98,150.96,3.19009646]
[1751566929703,6.6212,150.97,150.96,0.05035824]
[1751566931508,6.6212,150.97,150.96,3.19009646]
[1751566932809,9.76093822,150.97,150.96,0.05035824]
[1751566933011,6.6228,150.94,150.92,3.13973822]
[1751566933304,6.6228,150.94,150.93,3.13973822]
[1751566934410,6.6228,150.94,150.92,3.13973822]
[1751566934610,6.6228,150.94,150.92,9.76303822]
[1751566935618,0.04713011,150.95,150.93,3.13973822]
[1751566935820,0.04713011,150.95,150.94,3.13973822]
[1751566936118,0.04713011,150.95,150.91,45.22]
[1751566936314,3.18686833,150.95,150.91,48.35973822]
[1751566936713,6.6227,150.94,150.92,3.13973822]
[1751566937215,6.6229,150.94,150.92,3.13973822]
[1751566937715,3.18686833,150.95,150.91,54.98333822]
[1751566938518,6.623,150.93,150.91,54.98333822]
[1751566939620,6.623,150.93,150.91,51.8436]
[1751566944019,6.623,150.93,150.91,45.22]
[1751566946428,6.623,150.93,150.91,51.8438]
[1751566946728,6.623,150.93,150.91,6.6238]
[1751566947718,4.96171313,150.95,150.88,45.24]
[1751566947926,2.59654082,150.94,150.88,50.15458302]
[1751566948128,2.59654082,150.93,150.88,50.15458302]
[1751566948323,6.6242,150.91,150.88,56.77938302]
[1751566948528,4.91458302,150.93,150.88,45.24]
[1751566948730,2.59618599,150.92,150.88,45.24]
[1751566949030,6.6247,150.89,150.88,45.24]
[1751566949827,6.6247,150.89,150.83,576.6757]
[1751566949828,7.5093095,150.89,150.82,50.15458302]
[1751566950035,2.59472648,150.88,150.82,50.15458302]
[1751566950332,2.59472648,150.87,150.82,50.15458302]
[1751566950632,0.04856247,150.87,150.82,50.15458302]
[1751566951032,6.67436247,150.87,150.85,6.6264]
[1751566951234,6.67436247,150.87,150.83,4.91458302]
[1751566951427,6.67436247,150.87,150.84,6.6267]
[1751566952227,6.67436247,150.87,150.78,38.78839129]
[1751566952228,24.7300024,150.85,150.71,15.66788366]
[1751566952438,4.9200024,150.74,150.65,4.9200024]
[1751566952623,4.9200024,150.74,150.57,6.22272388]
[1751566952624,4.9200024,150.74,150.63,4.9200024]
[1751566952829,51.6600024,150.76,150.7,8.23805591]
[1751566953034,0.0483157,150.71,150.67,4.9200024]
[1751566953231,6.6306,150.76,150.7,14.87085591]
[1751566953438,5.98921882,150.75,150.73,8.23805591]
[1751566953730,52.88663175,150.8,150.71,4.9200024]
[1751566953731,5.98921882,150.74,150.71,4.9200024]
[1751566953930,11.06663415,150.82,150.76,8.23805591]
[1751566954131,5.99017315,150.81,150.73,51.6600024]
[1751566954330,5.99017315,150.8,150.73,248.4000024]
[1751566954531,5.99017315,150.79,150.78,8.23805591]
[1751566955234,6.6285,150.81,150.78,8.23805591]
[1751566955435,5.93341884,150.8,150.78,8.23805591]
[1751566955736,5.70140495,150.79,150.78,8.23805591]
[1751566956332,11.89409499,150.79,150.78,8.23805591]
[1751566956835,6.19269004,150.79,150.78,8.23805591]
[1751566957332,12.82179004,150.79,150.78,8.23805591]
[1751566960837,6.19269004,150.79,150.78,8.23805591]
[1751566962339,6.6288,150.8,150.78,8.23805591]
[1751566962539,6.6288,150.8,150.79,8.23805591]
[1751566962740,6.6291,150.79,150.77,0.04636097]
[1751566962935,6.14663175,150.84,150.79,8.23805591]
[1751566963140,9.20514092,150.83,150.82,8.23805591]
[1751566963340,2.64337278,150.83,150.82,4.92316633]
[1751566963537,11.64660829,150.88,150.82,13.16122224]
[1751566963736,8.436466,150.87,150.85,8.23805591]
[1751566963940,11.06979808,150.9,150.86,8.23805591]
[1751566964138,2.937014,150.89,150.86,8.23805591]
[1751566964442,6.6257,150.87,150.86,0.0448308]
[1751566965546,6.6252,150.88,150.86,8.28288671]
[1751566966744,5.50250155,150.9,150.87,8.23805591]
[1751566966947,6.14663175,150.92,150.88,8.23805591]
[1751566967245,0.04667548,150.89,150.88,8.23805591]
[1751566967445,0.04667548,150.89,150.86,4.96799713]
[1751566967647,0.04667548,150.89,150.88,8.23805591]
[1751566968347,0.04667548,150.89,150.88,14.86325591]
[1751566968540,0.04667548,150.89,150.88,8.23805591]
[1751566969545,0.04667548,150.89,150.88,14.86325591]
[1751566969746,0.04667548,150.89,150.88,8.23805591]
[1751566973252,0.04667548,150.89,150.88,14.86325591]